{"text_format":"1","workbook":"xlsx","n_sheets":18,"sheets":["LMU-40 n","LMU-40 m","1","1.SI","1.NO","2","3","3.SI","3.NO","4","4.1","5","6","7","8","9","10","ADICIONAL"],"not_rendered":{"charts":0,"images":16,"macros":1,"external_links":1,"defined_names":2,"comments":4,"pivot_tables":0},"unopened":[],"bounds":{"document_bytes":16777216,"sheet_cells":100000,"rows_first":2000,"rows_last":500,"rows_between":2000,"halvings":0,"cell_chars":16384,"cell_head_chars":4096},"cells_cut":0,"cells_raw":0,"read":"whole","date_system":"1900"}

{"sheet":"LMU-40 n","index":0,"n_rows":46,"n_cols":11,"rows_kept":46,"cut":false,"hidden":false,"merged":[[0,1,0,15],[6,3,6,4],[23,2,23,4],[45,4,46,5],[45,7,46,8],[45,10,46,11],[8,2,8,3],[6,11,6,13],[29,2,30,3],[29,4,29,8],[29,9,30,10],[31,2,31,3],[31,9,31,10],[32,2,32,3],[32,9,32,10],[34,2,34,3]]}
[null,"Solicitud de LMU-40 Para la instalación de redes de servicio - Nueva y Modificada."]
[null,"Rol: Ciudadano"]
[null,"2. Ingresar los datos en la solicitud de licencia."]
[]
[null,"Sección 1"]
[null,null,"DATOS GENERALES"]
[null,null,"RUC",1012457896001]
[null,null,"Nombre de la persona natural o jurídica proveedora del servicio"]
[]
[null,null," Nombre comercial de Operación"]
[]
[]
[null,null,"RESPONSABLE DEL TRÁMITE"]
[null,null,null,"N° Cédula :"]
[null,null,null,"Nombre responsable del Trámite"]
[null,null,null,"Teléfono"]
[null,null,null,"Email"]
[]
[null,"Sección 2"]
[null,null,"Tipo de proveedor de servicio"]
[]
[]
[]
[null,null,"Tipo de Licencia"]
[null,null,"Nueva"]
[null,null,"Modificada (Actualización de Datos)"]
[]
[null,"Sección 3"]
[null,null,"Datos Técnicos de la Red"]
[null,null," Tendido de Red",null,"AEREO (m)",null,null,null,null,"SOTERRADO (m)"]
[null,null,null,null,"ZONA A","ZONA B","ZONA C","ZONA D","ZONA E"]
[null,null,"Número de cables"]
[null,null,"Metros lineales  de  cable"]
[null,null,"Observaciones:"]
[null,null,null,null,null,null,null," ",null," "]
[null,"Sección 4"]
[null,null,"REQUISITOS"]
[]
[null,null,"Cargar la Información Cartográfica Georreferencial Digital "]
[]
[]
[null,null,"Nota:  La información GIS debe generarse en ARC Catalog, y únicamente 1 Archivo en *.gdb con el Nombre LINEAS_RED_EMPRESA XXXX"]
[]
[null,null,"Para Mayor información el instructivo puede descargarlo en la siguiente pagina Web",null,null,null,null,null,null,"http://www.xxxxx.gob.ec"]
[]
[null,null,null,null,"CANCELAR",null,null,"GUARDAR",null,null,"ENVIAR"]

{"sheet":"LMU-40 m","index":1,"n_rows":24,"n_cols":14,"rows_kept":24,"cut":false,"hidden":false,"merged":[[19,4,21,9],[23,4,24,5],[23,10,24,11],[0,1,0,15],[11,2,11,3],[12,2,12,3],[14,2,14,3],[15,2,15,3],[12,4,12,8],[8,1,8,7],[10,2,10,3],[10,4,10,8],[11,4,11,8],[13,2,13,3],[13,4,13,8],[14,4,14,8],[15,4,15,8]]}
[null,"Solicitud de LMU-40 Para la instalación de redes de servicio - Nueva y Modificada."]
[null,"Rol: Ciudadano"]
[null,"1. Notificación de actualización de datos y entrega de documentos para el nuevo año de licenciamiento."]
[]
[null,"Sección 1"]
[null,"Fecha de la anterior LMU que se extingue: ",null,null," 15/07/2015",null,null,null,null,null,null,null,"FECHA:",{"$f":"TODAY()","v":"2017-05-08"}]
[null,"LICENCIA LMU 40: N°",null,-12]
[]
[null,"DATOS DEL PROVEEDOR DE SERVICIO:"]
[]
[null,null,"RAZON SOCIAL:"]
[null,null,"RUC:"]
[null,null,"DIRECCIÓN:"]
[null,null,"REPRESENTANTE LEGAL:"]
[null,null,"TELÉFONO:"]
[null,null,"MAIL:"]
[]
[null,"Sección 2"]
[]
[null,null,null,null,"FAVOR ENTREGAR EL REGISTRO DE REDES Y ACTUALIZACIÓN DE DATOS PARA EL SIGUIENTE AÑO."]
[]
[]
[]
[null,null,null,null,"CANCELAR",null,null,null,null,null,"ACEPTAR"]

{"sheet":"1","index":2,"n_rows":48,"n_cols":14,"rows_kept":48,"cut":false,"hidden":false,"merged":[[28,2,28,3],[28,9,28,10],[0,1,0,15],[20,2,20,4],[8,1,8,2],[26,2,27,3],[26,4,26,8],[26,9,27,10],[47,4,48,5],[47,10,48,11],[44,3,45,14],[29,2,29,3],[29,9,29,10],[31,2,31,3]]}
[null,"Solicitud de LMU-40 Para la instalación de redes de servicio - Nueva y Modificada."]
[null,"Rol: Analista GIS"]
[null,"3. Recibir la información Georreferencial del ciudadano y revisarla."]
[]
[null,"Sección 1"]
[null,null,"DATOS GENERALES",null,null,null,null,null,null,null,null,null,"FECHA:",{"$f":"TODAY()","v":"2017-05-08"}]
[null,"RUC",1012457896001]
[null,"Nombre de la persona natural o jurídica proveedora del servicio"]
[]
[null," Nombre comercial de Operación"]
[]
[]
[null,null,null,"N° Cédula :"]
[null,null,null,"Nombre responsable del trámite"]
[null,null,null,"Teléfono"]
[null,null,null," Email"]
[]
[null,"Sección 2"]
[null,null,"Tipo de proveedor de servicio"]
[null,null,null,"Público o Privado"]
[null,null,"Tipo de Licencia"]
[null,null,"Nueva"]
[null,null,"Modificada (Actualización de Datos)"]
[]
[null,"Sección 3"]
[null,null,"Datos Técnicos de la Red"]
[null,null," Tendido de Red",null,"AEREO (m)",null,null,null,null,"SOTERRADO (m)"]
[null,null,null,null,"ZONA A","ZONA B","ZONA C","ZONA D","ZONA E"]
[null,null,"Número de cables"]
[null,null,"Metros lineales  de  cable"]
[null,null,"Observaciones:"]
[null,null,null,null,null,null,null," ",null," "]
[]
[null,"Sección 4"]
[null,null,"REQUISITOS"]
[]
[null,null,"Cargar la Información Cartográfica Georreferencial Digital "]
[]
[null,null,"MAPAS para inspecciones de control"]
[]
[null,"Sección 5"]
[]
[null,null,"Está correcta la información Georreferencial (GIS)"]
[]
[null,null,"Observaciones:"]
[]
[]
[null,null,null,null,"CANCELAR",null,null,null,null,null,"ACEPTAR"]

{"sheet":"1.SI","index":3,"n_rows":41,"n_cols":14,"rows_kept":41,"cut":false,"hidden":false,"merged":[[0,1,0,15],[40,4,41,5],[40,10,41,11],[30,2,31,6],[8,12,8,13],[7,3,7,4],[9,2,9,3],[27,2,28,5],[10,2,10,8],[11,2,11,3],[13,2,13,3],[12,2,12,8],[25,8,25,13]]}
[null,"Solicitud de LMU-40 Para la instalación de redes de servicio - Nueva y Modificada."]
[null,"Rol: Ciudadano"]
[null,"4. Ingresar datos del servicio que presta y solicitar la licencia correspondiente."]
[]
[null,"Sección 1"]
[null,null,"DATOS GENERALES",null,null,null,null,null,null,null,null,null,"FECHA:",{"$f":"TODAY()","v":"2017-05-08"}]
[]
[null,null,"RUC."]
[null,null,"Nombre de la persona natural o jurídica proveedora del servicio",null,null,null,null,null,null,null,null,null,"Tipo de proveedor de servicio"]
[null,null,null,null,null,null,null,null,null,null,null,null,"Público"]
[null,null,"Nombre comercial de Operación"]
[null,null,null,null,null,null,null,null,null,null,null,null,"Privado"]
[null,null,"Nombre de la Asociación a la que pertenece el Operador (de existir)"]
[]
[]
[null,null,"N° Cédula :"]
[null,null,"Nombre del responsable del trámite"]
[null,null,"Teléfono"]
[null,null,"Email"]
[]
[null,"Sección 2"]
[null,null,"TIPO DE SERVICIO"]
[null,null,"Energía Eléctrica"]
[null,null,"Telecomunicaciones"]
[null,null,"Televisión por cable"]
[null,null,"Transmisión de datos"]
[null,null,"Otros (especificar)"]
[null,null,"Se abre el cuadro de dialogo cuando el ciudadano marca el campo otros. Máximo 100 caracteres"]
[]
[]
[null,null," Fecha de vencimiento de la autorización para prestar servicio de operación."]
[null,null,null,null,null,null,null,"dd/mm/aaaa"]
[null,"Sección 3"]
[null,null,"REQUISITOS GENERALES"]
[]
[null,null,"Autorización para prestar servicio de operación, entregar por primera vez o cuando exista una modificación o renovación de la misma."]
[]
[]
[null,null,"Declara  que los datos de esta solicitud son verídicas y autorizadas por el operador."]
[]
[null,null,null,null,"CANCELAR",null,null,null,null,null,"ACEPTAR"]

{"sheet":"1.NO","index":4,"n_rows":34,"n_cols":14,"rows_kept":34,"cut":false,"hidden":false,"merged":[[33,4,34,5],[33,7,34,8],[33,10,34,11],[8,2,8,3],[0,1,0,15],[6,3,6,4]]}
[null,"Solicitud de LMU-40 Para la instalación de redes de servicio - Nueva y Modificada."]
[null,"Rol: Ciudadano"]
[null,"5. Subsanar las observaciones emitidas sobre la información Georreferencial entregada."]
[]
[null,"Sección 1"]
[null,null,"DATOS GENERALES",null,null,null,null,null,null,null,null,null,"FECHA:",{"$f":"TODAY()","v":"2017-05-08"}]
[null,null,"RUC"]
[null,null,"Nombre de la persona natural o jurídica proveedora del servicio",null,null,null,null,null,null,null,null,"Tipo de proveedor de servicio"]
[null,null,null,null,null,null,null,null,null,null,null,"Público o Privado"]
[null,null," Nombre comercial de Operación"]
[]
[]
[null,null,null,"N° Cédula :"]
[null,null,null,"Nombre responsable del trámite"]
[null,null,null,"Contacto: email, telf, etc."]
[]
[null,"Sección 2"]
[]
[null,null,"Observaciones:","Recomendaciones emitidas por el analista GIS para subsanar inconformidad en la información y los documentos digitales recibidos."]
[]
[]
[]
[]
[null,"Sección 3"]
[null,null,"REQUISITOS"]
[]
[null,null,"Cargar la Información Cartográfica Georreferencial Digital "]
[]
[]
[null,null,"Nota:  La información GIS debe generarse en ARC Catalog, y únicamente 1 Archivo en *.gdb con el Nombre LINEAS_RED_EMPRESA XXXX"]
[]
[null,null,"Para mayor información el instructivo puede descargarlo en la siguiente pagina Web",null,null,null,null,null,null,"http://www.xxxxx.gob.ec"]
[]
[null,null,null,null,"CANCELAR",null,null,"GUARDAR",null,null,"ENVIAR"]

{"sheet":"2","index":5,"n_rows":57,"n_cols":14,"rows_kept":57,"cut":false,"hidden":false,"merged":[[28,2,28,3],[0,1,0,15],[6,3,6,4],[12,11,12,12],[8,2,8,3],[9,2,9,8],[10,2,10,3],[11,2,11,8],[12,2,12,3],[24,2,25,5],[27,2,27,5],[56,4,57,5],[56,10,57,11],[35,9,36,10],[37,2,37,3],[37,9,37,10],[38,2,38,3],[38,9,38,10],[52,4,52,5],[54,4,54,5],[31,2,32,6],[35,2,36,3],[35,4,35,8],[29,2,29,3],[40,2,40,3]]}
[null,"Solicitud de LMU-40 Para la instalación de redes de servicio - Nueva y Modificada."]
[null,"Rol: Jefe Unidad de Reordenamiento de Redes"]
[null,"6. Recibir solicitud y asignar al técnico o técnicos de acuerdo a la necesidad de la solicitud."]
[]
[null,"Sección 1"]
[null,null,"DATOS GENERALES",null,null,null,null,null,null,null,null,null,"FECHA:",{"$f":"TODAY()","v":"2017-05-08"}]
[null,null,"RUC."]
[null,null,"Nombre de la persona natural o jurídica proveedora del servicio",null,null,null,null,null,null,null,null,"Numero de LMU 40 (en caso de disponer)"]
[]
[null,null,"Nombre comercial de Operación",null,null,null,null,null,null,null,null,"Fecha de Emisión de la LMU 40"]
[]
[null,null,"Nombre de la Asociación a la que pertenece el Operador (de existir)"]
[null,null,null,null,null,null,null,null,null,null,null,"Tipo de proveedor de servicio"]
[null,null,null,null,null,null,null,null,null,null,null,"Público"]
[null,null,"Email"]
[null,null,null,null,null,null,null,null,null,null,null,"Privado"]
[]
[null,"Sección 2"]
[null,null,"TIPO DE SERVICIO"]
[null,null,"Energía Eléctrica"]
[null,null,"Telecomunicaciones"]
[null,null,"Televisión por cable"]
[null,null,"Transmisión de datos"]
[null,null,"Otros (especificar)"]
[null,null,"Se abre el cuadro de dialogo cuando el ciudadano marca el campo otros. Máximo 100 caracteres"]
[]
[]
[null,null,"LONGITUDES TOTALES"]
[null,null,"Red de servicio",null,"AEREO (mts)","SOTERRADO (mts)"]
[null,null,"Red existente"]
[]
[null,null,"Fecha de vencimiento de la autorización para prestar servicio de operación"]
[null,null,null,null,null,null,null,"dd/mm/aaaa"]
[null,"Sección 3"]
[null,null,"Datos Técnicos de la Red"]
[null,null," Tendido de Red",null,"AEREO (m)",null,null,null,null,"SOTERRADO (m)"]
[null,null,null,null,"ZONA A","ZONA B","ZONA C","ZONA D","ZONA E"]
[null,null,"Número de cables"]
[null,null,"Metros lineales  de  cable"]
[null,null,"Observaciones:"]
[null,null,null,null,null,null,null," ",null," "]
[]
[null,"Sección 4"]
[null,null,"REQUISITOS GENERALES"]
[]
[null,null,"Autorización para prestar servicio de operación, entregar por primera vez o cuando exista una modificación o renovación de la misma."]
[]
[null,null,"MAPAS para inspecciones de control"]
[]
[null,"Sección 5"]
[null,null,"ASIGNAT TÉCNICO"]
[]
[null,null,"Asignar Técnico",null,"Técnico 1"]
[]
[null,null,"Asignar Técnico",null,"Técnico 2"]
[]
[null,null,null,null,"CANCELAR",null,null,null,null,null,"ACEPTAR"]

{"sheet":"3","index":6,"n_rows":59,"n_cols":14,"rows_kept":59,"cut":false,"hidden":false,"merged":[[1,1,1,15],[7,3,7,4],[9,2,9,3],[10,2,10,8],[11,2,11,3],[12,2,12,8],[13,2,13,3],[13,11,13,12],[25,2,26,5],[28,2,28,5],[29,2,29,3],[30,2,30,3],[32,2,33,6],[36,2,37,3],[36,4,36,8],[41,2,41,3],[58,4,59,5],[58,10,59,11],[36,9,37,10],[38,2,38,3],[38,9,38,10],[39,2,39,3],[39,9,39,10]]}
[]
[null,"Solicitud de LMU-40 Para la instalación de redes de servicio - Nueva y Modificada."]
[null,"Rol: Técnico de Licenciamiento"]
[null,"7. Revisar los datos, requisitos ingresados por el ciudadano y validarlos."]
[]
[null,"Sección 1"]
[null,null,"DATOS GENERALES",null,null,null,null,null,null,null,null,null,"FECHA:",{"$f":"TODAY()","v":"2017-05-08"}]
[null,null,"RUC."]
[null,null,"Nombre de la persona natural o jurídica proveedora del servicio",null,null,null,null,null,null,null,null,"Numero de LMU 40 (en caso de disponer)"]
[]
[null,null,"Nombre comercial de Operación",null,null,null,null,null,null,null,null,"Fecha de Emisión de la LMU 40"]
[]
[null,null,"Nombre de la Asociación a la que pertenece el Operador (de existir)"]
[null,null,null,null,null,null,null,null,null,null,null,"Tipo de proveedor de servicio"]
[null,null,null,null,null,null,null,null,null,null,null,"Público"]
[null,null,"Email"]
[null,null,null,null,null,null,null,null,null,null,null,"Privado"]
[]
[null,"Sección 2"]
[null,null,"TIPO DE SERVICIO"]
[null,null,"Energía Eléctrica"]
[null,null,"Telecomunicaciones"]
[null,null,"Televisión por cable"]
[null,null,"Transmisión de datos"]
[null,null,"Otros (especificar)"]
[null,null,"Se abre el cuadro de dialogo cuando el ciudadano marca el campo otros. Máximo 100 caracteres"]
[]
[]
[null,null,"LONGITUDES TOTALES"]
[null,null,"Red de servicio",null,"AEREO (mts)","SOTERRADO (mts)"]
[null,null,"Red existente"]
[]
[null,null,"Fecha de vencimiento de la autorización para prestar servicio de operación"]
[null,null,null,null,null,null,null,"dd/mm/aaaa"]
[null,"Sección 3"]
[null,null,"Datos Técnicos de la Red"]
[null,null," Tendido de Red",null,"AEREO (m)",null,null,null,null,"SOTERRADO (m)"]
[null,null,null,null,"ZONA A","ZONA B","ZONA C","ZONA D","ZONA E"]
[null,null,"Número de cables"]
[null,null,"Metros lineales  de  cable"]
[null,null,"Observaciones:"]
[null,null,null,null,null,null,null," ",null," "]
[]
[null,"Sección 4"]
[null,null,"REQUISITOS GENERALES"]
[]
[null,null,"Autorización para prestar servicio de operación, entregar por primera vez o cuando exista una modificación o renovación de la misma."]
[]
[null,null,"MAPAS para inspecciones de control"]
[]
[null,"Sección 5"]
[null,null,"VALIDACIÓN DE LA INFORMACIÓN"]
[]
[null,null,null,"Estan correctos los documentos cargados por el ciudadano"]
[]
[null,null,"Observaciones"]
[]
[]
[null,null,null,null,"CANCELAR",null,null,null,null,null,"ACEPTAR"]

{"sheet":"3.SI","index":7,"n_rows":47,"n_cols":14,"rows_kept":47,"cut":false,"hidden":false,"merged":[[0,1,0,15],[6,3,6,4],[8,2,8,3],[9,2,9,8],[10,2,10,3],[11,2,11,8],[12,2,12,3],[12,11,12,12],[23,2,24,5],[26,2,26,5],[27,2,27,3],[28,2,28,3],[30,2,31,6],[34,2,35,3],[34,4,34,8],[39,2,39,3],[46,4,47,5],[46,10,47,11],[34,9,35,10],[36,2,36,3],[36,9,36,10],[37,2,37,3],[37,9,37,10]]}
[null,"Solicitud de LMU-40 Para la instalación de redes de servicio - Nueva y Modificada."]
[null,"Rol: Técnico de Licenciamiento"]
[null,"8. Seleccionar si genera o no tasa de cobro de acuerto al tipo de licencia solicitada e informeción facilitada por el ciudadano."]
[]
[null,"Sección 1"]
[null,null,"DATOS GENERALES",null,null,null,null,null,null,null,null,null,"FECHA:",{"$f":"TODAY()","v":"2017-05-08"}]
[null,null,"RUC."]
[null,null,"Nombre de la persona natural o jurídica proveedora del servicio",null,null,null,null,null,null,null,null,"Numero de LMU 40 (en caso de disponer)"]
[]
[null,null,"Nombre comercial de Operación",null,null,null,null,null,null,null,null,"Fecha de Emisión de la LMU 40"]
[]
[null,null,"Nombre de la Asociación a la que pertenece el Operador (de existir)"]
[null,null,null,null,null,null,null,null,null,null,null,"Tipo de proveedor de servicio"]
[null,null,null,null,null,null,null,null,null,null,null,"Público"]
[null,null,"Email",null,null,null,null,null,null,null,null,"Privado"]
[]
[null,"Sección 2"]
[null,null,"TIPO DE SERVICIO"]
[null,null,"Energía Eléctrica"]
[null,null,"Telecomunicaciones"]
[null,null,"Televisión por cable"]
[null,null,"Transmisión de datos"]
[null,null,"Otros (especificar)"]
[null,null,"Se abre el cuadro de dialogo cuando el ciudadano marca el campo otros. Máximo 100 caracteres"]
[]
[]
[null,null,"LONGITUDES TOTALES"]
[null,null,"Red de servicio",null,"AEREO (mts)","SOTERRADO (mts)"]
[null,null,"Red existente"]
[]
[null,null,"Fecha de vencimiento de la autorización para prestar servicio de operación"]
[null,null,null,null,null,null,null,"dd/mm/aaaa"]
[null,"Sección 3"]
[null,null,"Datos Técnicos de la Red"]
[null,null," Tendido de Red",null,"AEREO (m)",null,null,null,null,"SOTERRADO (m)"]
[null,null,null,null,"ZONA A","ZONA B","ZONA C","ZONA D","ZONA E"]
[null,null,"Número de cables"]
[null,null,"Metros lineales  de  cable"]
[null,null,"Observaciones:"]
[null,null,null,null,null,null,null," ",null," "]
[]
[null,"Sección 4"]
[null,null,"VALIDACIÓN DE LA INFORMACIÓN"]
[]
[null,null,null,null,null,null,"Generar Tasa de Cobro "]
[]
[null,null,null,null,"CANCELAR",null,null,null,null,null,"ACEPTAR"]

{"sheet":"3.NO","index":8,"n_rows":58,"n_cols":14,"rows_kept":58,"cut":false,"hidden":false,"merged":[[35,9,36,10],[37,2,37,3],[37,9,37,10],[28,2,28,3],[29,2,29,3],[31,2,32,6],[35,2,36,3],[35,4,35,8],[11,2,11,8],[12,2,12,3],[12,11,12,12],[24,2,25,5],[27,2,27,5],[0,1,0,15],[6,3,6,4],[8,2,8,3],[9,2,9,8],[10,2,10,3],[38,2,38,3],[38,9,38,10],[40,2,40,3],[57,4,58,5],[57,10,58,11]]}
[null,"Solicitud de LMU-40 Para la instalación de redes de servicio - Nueva y Modificada."]
[null,"Rol: Ciudadano"]
[null,"9. Revisar observaciones, subsanarlas y cambiar los datos necesarios"]
[]
[null,"Sección 1"]
[null,null,"DATOS GENERALES",null,null,null,null,null,null,null,null,null,"FECHA:",{"$f":"TODAY()","v":"2017-05-08"}]
[null,null,"RUC."]
[null,null,"Nombre de la persona natural o jurídica proveedora del servicio",null,null,null,null,null,null,null,null,"Numero de LMU 40 (en caso de disponer)"]
[]
[null,null,"Nombre comercial de Operación",null,null,null,null,null,null,null,null,"Fecha de Emisión de la LMU 40"]
[]
[null,null,"Nombre de la Asociación a la que pertenece el Operador (de existir)"]
[null,null,null,null,null,null,null,null,null,null,null,"Tipo de proveedor de servicio"]
[null,null,null,null,null,null,null,null,null,null,null,"Público"]
[null,null,"Email"]
[null,null,null,null,null,null,null,null,null,null,null,"Privado"]
[]
[null,"Sección 2"]
[null,null,"TIPO DE SERVICIO"]
[null,null,"Energía Eléctrica"]
[null,null,"Telecomunicaciones"]
[null,null,"Televisión por cable"]
[null,null,"Transmisión de datos"]
[null,null,"Otros (especificar)"]
[null,null,"Se abre el cuadro de dialogo cuando el ciudadano marca el campo otros. Máximo 100 caracteres"]
[]
[]
[null,null,"LONGITUDES TOTALES"]
[null,null,"Red de servicio",null,"AEREO (mts)","SOTERRADO (mts)"]
[null,null,"Red existente"]
[]
[null,null,"Fecha de vencimiento de la autorización para prestar servicio de operación"]
[null,null,null,null,null,null,null,"dd/mm/aaaa"]
[null,"Sección 3"]
[null,null,"Datos Técnicos de la Red"]
[null,null," Tendido de Red",null,"AEREO (m)",null,null,null,null,"SOTERRADO (m)"]
[null,null,null,null,"ZONA A","ZONA B","ZONA C","ZONA D","ZONA E"]
[null,null,"Número de cables"]
[null,null,"Metros lineales  de  cable"]
[null,null,"Observaciones:"]
[null,null,null,null,null,null,null," ",null," "]
[]
[null,"Sección 4"]
[null,null,"REQUISITOS GENERALES"]
[]
[null,null,"Autorización para prestar servicio de operación, entregar por primera vez o cuando exista una modificación o renovación de la misma."]
[]
[null,null,"MAPAS para inspecciones de control"]
[]
[null,"Sección 5"]
[null,null,"VALIDACIÓN DE LA INFORMACIÓN"]
[]
[null,null,null,"Estan correctos los documentos cargados por el ciudadano"]
[]
[null,null,"Observaciones"]
[]
[]
[null,null,null,null,"CANCELAR",null,null,null,null,null,"ACEPTAR"]

{"sheet":"4","index":9,"n_rows":33,"n_cols":12,"rows_kept":33,"cut":false,"hidden":false,"merged":[[0,1,0,15],[6,2,6,3],[6,4,6,8],[7,2,7,3],[7,4,7,8],[8,2,8,3],[8,4,8,8],[9,4,9,8],[10,2,10,3],[10,4,10,8],[9,1,9,3],[16,7,16,8],[11,2,11,3],[11,4,11,8],[20,5,20,6],[21,5,21,6],[16,5,16,6],[17,5,17,6],[18,5,18,6],[19,5,19,6],[16,3,16,4],[17,3,21,4],[16,9,16,10],[17,9,17,10],[18,9,18,10],[19,9,19,10],[20,9,20,10],[32,4,33,5],[32,10,33,11],[21,9,21,10],[22,9,22,10],[17,7,17,8],[18,7,18,8],[19,7,19,8],[20,7,20,8],[21,7,21,8],[22,7,22,8],[22,5,22,6],[22,3,22,4]]}
[null,"Solicitud de LMU-40 Para la instalación de redes de servicio - Nueva y Modificada."]
[null,"Rol: Técnico de Licenciamiento"]
[null,"10. Generar los valores de la tasa de cobro."]
[]
[null,"Sección 1"]
[null,null,"DATOS DEL PROVEEDOR DE SERVICIO:"]
[null,null,"RAZON SOCIAL:"]
[null,null,"RUC:"]
[null,null,"DIRECCIÓN:"]
[null,"REPRESENTANTE LEGAL:"]
[null,null,"TELÉFONO:"]
[null,null,"MAIL:"]
[]
[null,"Sección 2"]
[null,null,"DATOS TÉCNICOS"]
[]
[null,null,null,"Tipo de Red",null,"Zonificación",null,"Metro Lineal ",null,"Costo x m lineal",null,"Sub total"]
[null,null,null,"Aéreo",null,"Zona A"]
[null,null,null,null,null,"Zona B"]
[null,null,null,null,null,"Zona C"]
[null,null,null,null,null,"Zona D"]
[null,null,null,null,null,"Zona E"]
[null,null,null,"Soterrado:"]
[]
[null,"Sección 3"]
[]
[]
[]
[null,null,null,null,null,null,null,null,null,null,null,"MENSAJE BLOQUEADO CON EL JUSTIFICATIVO LEGAL DE PORQUE SE GENERAN ESOS VALORES"]
[]
[]
[]
[null,null,null,null,"CANCELAR",null,null,null,null,null,"ACEPTAR"]

{"sheet":"4.1","index":10,"n_rows":33,"n_cols":12,"rows_kept":33,"cut":false,"hidden":false,"merged":[[0,1,0,15],[6,2,6,3],[6,4,6,8],[7,2,7,3],[7,4,7,8],[8,2,8,3],[8,4,8,8],[9,1,9,3],[9,4,9,8],[10,2,10,3],[10,4,10,8],[11,2,11,3],[11,4,11,8],[16,3,16,4],[16,5,16,6],[16,7,16,8],[16,9,16,10],[17,3,21,4],[17,5,17,6],[17,7,17,8],[17,9,17,10],[18,5,18,6],[18,7,18,8],[18,9,18,10],[19,5,19,6],[19,7,19,8],[19,9,19,10],[20,5,20,6],[20,7,20,8],[20,9,20,10],[21,5,21,6],[21,7,21,8],[32,4,33,5],[32,10,33,11],[21,9,21,10],[22,3,22,4],[22,5,22,6],[22,7,22,8],[22,9,22,10]]}
[null,"Solicitud de LMU-40 Para la instalación de redes de servicio - Nueva y Modificada."]
[null,"Rol: Servidor Dirección Metropolitana Financiera."]
[null,"11. Generar título de Orden de Pago y comunicar al ciudadano.."]
[]
[null,"Sección 1"]
[null,null,"DATOS DEL PROVEEDOR DE SERVICIO:"]
[null,null,"RAZON SOCIAL:"]
[null,null,"RUC:"]
[null,null,"DIRECCIÓN:"]
[null,"REPRESENTANTE LEGAL:"]
[null,null,"TELÉFONO:"]
[null,null,"MAIL:"]
[]
[null,"Sección 2"]
[null,null,"DATOS TÉCNICOS"]
[]
[null,null,null,"Tipo de Red",null,"Zonificación",null,"Metro Lineal ",null,"Costo x m lineal",null,"Sub total"]
[null,null,null,"Aéreo",null,"Zona A"]
[null,null,null,null,null,"Zona B"]
[null,null,null,null,null,"Zona C"]
[null,null,null,null,null,"Zona D"]
[null,null,null,null,null,"Zona E"]
[null,null,null,"Soterrado:"]
[]
[null,"Sección 3"]
[]
[]
[]
[null,null,null,null,null,null,null,null,null,null,null,"MENSAJE BLOQUEADO CON EL JUSTIFICATIVO LEGAL DE PORQUE SE GENERAN ESOS VALORES"]
[]
[]
[]
[null,null,null,null,"CANCELAR",null,null,null,null,null,"ACEPTAR"]

{"sheet":"5","index":11,"n_rows":30,"n_cols":12,"rows_kept":30,"cut":false,"hidden":false,"merged":[[0,1,0,15],[6,2,6,3],[6,4,6,8],[7,2,7,3],[7,4,7,8],[8,2,8,3],[8,4,8,8],[9,1,9,3],[9,4,9,8],[10,2,10,3],[10,4,10,8],[11,2,11,3],[11,4,11,8],[16,3,16,4],[16,5,16,6],[16,7,16,8],[16,9,16,10],[17,3,21,4],[17,5,17,6],[17,7,17,8],[17,9,17,10],[18,5,18,6],[18,7,18,8],[18,9,18,10],[19,5,19,6],[19,7,19,8],[19,9,19,10],[20,5,20,6],[20,7,20,8],[20,9,20,10],[21,5,21,6],[21,7,21,8],[29,4,30,5],[29,10,30,11],[21,9,21,10],[22,3,22,4],[22,5,22,6],[22,7,22,8],[22,9,22,10]]}
[null,"Solicitud de LMU-40 Para la instalación de redes de servicio - Nueva y Modificada."]
[null,"Rol: Técnico de Licenciamiento"]
[null,"12. Actualizar información de la licencia, verificar si esta requiere o no que se emita una nueva licencia."]
[]
[null,"Sección 1"]
[null,null,"DATOS DEL PROVEEDOR DE SERVICIO:"]
[null,null,"RAZON SOCIAL:"]
[null,null,"RUC:"]
[null,null,"DIRECCIÓN:"]
[null,"REPRESENTANTE LEGAL:"]
[null,null,"TELÉFONO:"]
[null,null,"MAIL:"]
[]
[null,"Sección 2"]
[null,null,"DATOS TÉCNICOS"]
[]
[null,null,null,"Tipo de Red",null,"Zonificación",null,"Metro Lineal ",null,"Costo x m lineal",null,"Sub total"]
[null,null,null,"Aéreo",null,"Zona A"]
[null,null,null,null,null,"Zona B"]
[null,null,null,null,null,"Zona C"]
[null,null,null,null,null,"Zona D"]
[null,null,null,null,null,"Zona E"]
[null,null,null,"Soterrado:"]
[]
[null,"Sección 3"]
[null,null,null,"ACTUALIZACIÓN DE DATOS O RENOVACIÓN ANUAL"]
[]
[null,null,"Existe algun cambio en la información del Prestador de Servicios."]
[]
[null,null,null,null,"CANCELAR",null,null,null,null,null,"ACEPTAR"]

{"sheet":"6","index":12,"n_rows":39,"n_cols":13,"rows_kept":39,"cut":false,"hidden":false,"merged":[[36,8,36,10],[36,11,36,12],[36,3,36,4],[31,3,31,12],[32,3,32,12],[33,3,33,12],[34,3,34,12],[35,3,35,12],[21,3,21,12],[23,7,23,8],[24,7,24,8],[25,7,25,8],[29,7,29,8],[0,1,0,14],[6,3,8,12],[9,3,9,5],[9,7,9,10],[38,4,39,5],[38,10,39,11],[11,3,11,12],[12,3,12,12],[14,3,14,5],[14,7,14,12],[15,7,15,12],[16,7,16,12],[17,3,17,5],[17,7,17,12],[18,7,18,12],[19,7,19,12]]}
[null,"Solicitud de LMU-40 Para la instalación de redes de servicio - Nueva y Modificada."]
[null,"Rol: Técnico de Licenciamiento"]
[null,"13. Generar Licencia."]
[]
[null,"Sección 1"]
[]
[null,null,null,"LICENCIA METROPOLITANA URBANÍSTICA DE UTILIZACIÓN O\nAPROVECHAMIENTO DEL ESPACIO PÚBLICO PARA LA\nINSTALACIÓN DE REDES DE SERVICIO - LMU 40"]
[]
[]
[null,null,null,"LICENCIA LMU 40: N°- 012",null,null,null,"Exigibilidad: 29 de julio de cada año, contados a partir del 2011",null,null,null,"Fecha de Emisión",{"$f":"TODAY()","v":"2017-05-08"}]
[null,null,null,"MODIFICACIÓN ",null,"SI",null,"Fecha de la anterior LMU que se extingue: ",null,null,null," 15/07/2015"]
[null,null,null,"En base a los datos consignados en el formulario 40, entregado a la Secretaría de Territorio Hábitat y Vivienda y en cumplimiento de la ORDENANZA METROPOLITANA 022  que rige la utilización o aprovechamiento de espacio público para la instalación de redes de servicio  se otorga la LMU 40 para el proveedor siguiente: "]
[null,null,null,"DATOS DEL PROVEEDOR DE SERVICIO:"]
[]
[null,null,null,"RAZON SOCIAL:"]
[null,null,null,null,null,"RUC:"]
[null,null,null,null,null,"DIRECCIÓN:"]
[null,null,null,"REPRESENTANTE LEGAL:"]
[null,null,null,null,null,"TELÉFONO:"]
[null,null,null,null,null,"MAIL:"]
[]
[null,null,null,"DATOS TÉCNICOS:"]
[]
[null,null,null,null,null,"Tipo de Red","Zonificación","Metro Lineal "]
[null,null,null,null,null,"Aéreo","Zona A"]
[null,null,null,null,null,null,"Zona B",null,{"$f":"'[1]MATRIZ GLOBAL LMU 40'!A31","v":{"$error":"#REF!"}}]
[null,null,null,null,null,null,"Zona C"]
[null,null,null,null,null,null,"Zona D"]
[null,null,null,null,null,null,"Zona E"]
[null,null,null,null,null,"Soterrado:"]
[]
[null,null,null,"PERIODO DE VIGENCIA: INDETERMINADA"]
[null,null,null,"NOTAS.-\n-Esta licencia no convalida el incumplimiento de otras obligaciones previstas en el Ordenamiento Jurídico Metropolitano o Nacional Sectorial.\n-No se podrá utilizar esta Licencia y la información que con ocasión de su otorgamiento se hubiere suministrado para desconocer o incumplir obligaciones establecidas en el Ordenamiento Jurídico Nacional, ni para ejecutar conductas que afecten de algún modo la libre competencia. \n-Esta licencia caducará, y por tanto se extinguirá, en los siguientes supuestos: \na) En el plazo de tres meses de expedida, si su titular no ha iniciado la actuación licenciada;\nb) Por el vencimiento de cualquier otro plazo otorgado al administrado por el Municipio del Distrito Metropolitano de Quito para subsanar deficiencias; y,\nc) En los demás casos previstos en el Ordenamiento Jurídico Metropolitano. \n-Esta licencia se extinguirá, cuando hubiere sido otorgada sin cumplir con los requisitos establecidos en las normas administrativas o Reglas Técnicas que le hubieren sido aplicables. "]
[null,null,null,"LMU 40 emitida en relación al oficio No. NET-16-07-026, de fecha 14 de julio del 2016"]
[null,null,null," \nSECRETARIO DE TERRITORIO, HÁBITAT Y VIVIENDA"]
[null,null,null,"MUNICIPIO DEL DISTRITO METROPOLITANO DE QUITO"]
[null,null,null,"Elaborado por:"]
[]
[null,null,null,null,"CANCELAR",null,null,null,null,null,"ACEPTAR"]

{"sheet":"7","index":13,"n_rows":44,"n_cols":13,"rows_kept":44,"cut":false,"hidden":false,"merged":[[43,4,44,5],[43,10,44,11],[36,3,36,4],[36,8,36,10],[36,11,36,12],[32,3,32,12],[33,3,33,12],[34,3,34,12],[35,3,35,12],[37,3,37,4],[37,8,37,10],[37,11,37,12],[23,7,23,8],[24,7,24,8],[25,7,25,8],[29,7,29,8],[31,3,31,12],[17,3,17,5],[17,7,17,12],[18,7,18,12],[19,7,19,12],[21,3,21,12],[12,3,12,12],[14,3,14,5],[14,7,14,12],[15,7,15,12],[16,7,16,12],[0,1,0,14],[6,3,8,12],[9,3,9,5],[9,7,9,10],[11,3,11,12]]}
[null,"Solicitud de LMU-40 Para la instalación de redes de servicio - Nueva y Modificada."]
[null,"Rol: Jefe de la Unidad de Reordenamiento de Redes"]
[null,"14. Revisar expediente y datos de la licencia."]
[]
[null,"Sección 1"]
[]
[null,null,null,"LICENCIA METROPOLITANA URBANÍSTICA DE UTILIZACIÓN O\nAPROVECHAMIENTO DEL ESPACIO PÚBLICO PARA LA\nINSTALACIÓN DE REDES DE SERVICIO - LMU 40"]
[]
[]
[null,null,null,"LICENCIA LMU 40: N°- 012",null,null,null,"Exigibilidad: 29 de julio de cada año, contados a partir del 2011",null,null,null,"Fecha de Emisión",{"$f":"TODAY()","v":"2017-05-08"}]
[null,null,null,"MODIFICACIÓN ",null,"SI",null,"Fecha de la anterior LMU que se extingue: ",null,null,null," 15/07/2015"]
[null,null,null,"En base a los datos consignados en el formulario 40, entregado a la Secretaría de Territorio Hábitat y Vivienda y en cumplimiento de la ORDENANZA METROPOLITANA 022  que rige la utilización o aprovechamiento de espacio público para la instalación de redes de servicio  se otorga la LMU 40 para el proveedor siguiente: "]
[null,null,null,"DATOS DEL PROVEEDOR DE SERVICIO:"]
[]
[null,null,null,"RAZON SOCIAL:"]
[null,null,null,null,null,"RUC:"]
[null,null,null,null,null,"DIRECCIÓN:"]
[null,null,null,"REPRESENTANTE LEGAL:"]
[null,null,null,null,null,"TELÉFONO:"]
[null,null,null,null,null,"MAIL:"]
[]
[null,null,null,"DATOS TÉCNICOS:"]
[]
[null,null,null,null,null,"Tipo de Red","Zonificación","Metro Lineal "]
[null,null,null,null,null,"Aéreo","Zona A"]
[null,null,null,null,null,null,"Zona B",null,{"$f":"'[1]MATRIZ GLOBAL LMU 40'!I31","v":{"$error":"#REF!"}}]
[null,null,null,null,null,null,"Zona C"]
[null,null,null,null,null,null,"Zona D"]
[null,null,null,null,null,null,"Zona E"]
[null,null,null,null,null,"Soterrado:"]
[]
[null,null,null,"PERIODO DE VIGENCIA: INDETERMINADA"]
[null,null,null,"NOTAS.-\n-Esta licencia no convalida el incumplimiento de otras obligaciones previstas en el Ordenamiento Jurídico Metropolitano o Nacional Sectorial.\n-No se podrá utilizar esta Licencia y la información que con ocasión de su otorgamiento se hubiere suministrado para desconocer o incumplir obligaciones establecidas en el Ordenamiento Jurídico Nacional, ni para ejecutar conductas que afecten de algún modo la libre competencia. \n-Esta licencia caducará, y por tanto se extinguirá, en los siguientes supuestos: \na) En el plazo de tres meses de expedida, si su titular no ha iniciado la actuación licenciada;\nb) Por el vencimiento de cualquier otro plazo otorgado al administrado por el Municipio del Distrito Metropolitano de Quito para subsanar deficiencias; y,\nc) En los demás casos previstos en el Ordenamiento Jurídico Metropolitano. \n-Esta licencia se extinguirá, cuando hubiere sido otorgada sin cumplir con los requisitos establecidos en las normas administrativas o Reglas Técnicas que le hubieren sido aplicables. "]
[null,null,null,"LMU 40 emitida en relación al oficio No. NET-16-07-026, de fecha 14 de julio del 2016"]
[null,null,null," \nSECRETARIO DE TERRITORIO, HÁBITAT Y VIVIENDA"]
[null,null,null,"MUNICIPIO DEL DISTRITO METROPOLITANO DE QUITO"]
[null,null,null,"Elaborado por:",null,null,null,null,"SI",null,null,"NO"]
[null,null,null,"Revisado por:"]
[]
[null,"Sección 2"]
[]
[null,null,"EXPEDIENTE COMPLETO"]
[]
[null,null,null,null,"CANCELAR",null,null,null,null,null,"ACEPTAR"]

{"sheet":"8","index":14,"n_rows":45,"n_cols":13,"rows_kept":45,"cut":false,"hidden":false,"merged":[[37,3,37,4],[37,8,37,10],[37,11,37,12],[44,4,45,5],[44,10,45,11],[38,3,38,4],[38,8,38,10],[38,11,38,12],[32,3,32,12],[33,3,33,12],[34,3,34,12],[35,3,35,12],[36,3,36,4],[36,8,36,10],[36,11,36,12],[23,7,23,8],[24,7,24,8],[25,7,25,8],[29,7,29,8],[31,3,31,12],[17,3,17,5],[17,7,17,12],[18,7,18,12],[19,7,19,12],[21,3,21,12],[12,3,12,12],[14,3,14,5],[14,7,14,12],[15,7,15,12],[16,7,16,12],[0,1,0,14],[6,3,8,12],[9,3,9,5],[9,7,9,10],[11,3,11,12]]}
[null,"Solicitud de LMU-40 Para la instalación de redes de servicio - Nueva y Modificada."]
[null,"Rol: Asistente Administrativa de la Unidad "]
[null,"15. Regularizar firma del Director"]
[]
[null,"Sección 1"]
[]
[null,null,null,"LICENCIA METROPOLITANA URBANÍSTICA DE UTILIZACIÓN O\nAPROVECHAMIENTO DEL ESPACIO PÚBLICO PARA LA\nINSTALACIÓN DE REDES DE SERVICIO - LMU 40"]
[]
[]
[null,null,null,"LICENCIA LMU 40: N°- 012",null,null,null,"Exigibilidad: 29 de julio de cada año, contados a partir del 2011",null,null,null,"Fecha de Emisión",{"$f":"TODAY()","v":"2017-05-08"}]
[null,null,null,"MODIFICACIÓN ",null,"SI",null,"Fecha de la anterior LMU que se extingue: ",null,null,null," 15/07/2015"]
[null,null,null,"En base a los datos consignados en el formulario 40, entregado a la Secretaría de Territorio Hábitat y Vivienda y en cumplimiento de la ORDENANZA METROPOLITANA 022  que rige la utilización o aprovechamiento de espacio público para la instalación de redes de servicio  se otorga la LMU 40 para el proveedor siguiente: "]
[null,null,null,"DATOS DEL PROVEEDOR DE SERVICIO:"]
[]
[null,null,null,"RAZON SOCIAL:"]
[null,null,null,null,null,"RUC:"]
[null,null,null,null,null,"DIRECCIÓN:"]
[null,null,null,"REPRESENTANTE LEGAL:"]
[null,null,null,null,null,"TELÉFONO:"]
[null,null,null,null,null,"MAIL:"]
[]
[null,null,null,"DATOS TÉCNICOS:"]
[]
[null,null,null,null,null,"Tipo de Red","Zonificación","Metro Lineal "]
[null,null,null,null,null,"Aéreo","Zona A"]
[null,null,null,null,null,null,"Zona B",null,{"$f":"'[1]MATRIZ GLOBAL LMU 40'!P31","v":{"$error":"#REF!"}}]
[null,null,null,null,null,null,"Zona C"]
[null,null,null,null,null,null,"Zona D"]
[null,null,null,null,null,null,"Zona E"]
[null,null,null,null,null,"Soterrado:"]
[]
[null,null,null,"PERIODO DE VIGENCIA: INDETERMINADA"]
[null,null,null,"NOTAS.-\n-Esta licencia no convalida el incumplimiento de otras obligaciones previstas en el Ordenamiento Jurídico Metropolitano o Nacional Sectorial.\n-No se podrá utilizar esta Licencia y la información que con ocasión de su otorgamiento se hubiere suministrado para desconocer o incumplir obligaciones establecidas en el Ordenamiento Jurídico Nacional, ni para ejecutar conductas que afecten de algún modo la libre competencia. \n-Esta licencia caducará, y por tanto se extinguirá, en los siguientes supuestos: \na) En el plazo de tres meses de expedida, si su titular no ha iniciado la actuación licenciada;\nb) Por el vencimiento de cualquier otro plazo otorgado al administrado por el Municipio del Distrito Metropolitano de Quito para subsanar deficiencias; y,\nc) En los demás casos previstos en el Ordenamiento Jurídico Metropolitano. \n-Esta licencia se extinguirá, cuando hubiere sido otorgada sin cumplir con los requisitos establecidos en las normas administrativas o Reglas Técnicas que le hubieren sido aplicables. "]
[null,null,null,"LMU 40 emitida en relación al oficio No. NET-16-07-026, de fecha 14 de julio del 2016"]
[null,null,null," \nSECRETARIO DE TERRITORIO, HÁBITAT Y VIVIENDA"]
[null,null,null,"MUNICIPIO DEL DISTRITO METROPOLITANO DE QUITO"]
[null,null,null,"Elaborado por:",null,null,null,null,"SI",null,null,"NO"]
[null,null,null,"Revisado por:",null,null,null,null,"SI"]
[null,null,null,"Revisado por:",null,null,null,null,"FIRMA DIGITAL"]
[]
[null,"Sección 2"]
[]
[null,null,"Regularizar Firma del Director "]
[]
[null,null,null,null,"CANCELAR",null,null,null,null,null,"ACEPTAR"]

{"sheet":"9","index":15,"n_rows":85,"n_cols":13,"rows_kept":85,"cut":false,"hidden":false,"merged":[[44,4,45,5],[44,10,45,11],[32,3,32,12],[33,3,33,12],[34,3,34,12],[35,3,35,12],[36,3,36,4],[36,8,36,10],[36,11,36,12],[37,3,37,4],[37,8,37,10],[37,11,37,12],[38,3,38,4],[38,8,38,10],[38,11,38,12],[23,7,23,8],[24,7,24,8],[25,7,25,8],[29,7,29,8],[31,3,31,12],[17,3,17,5],[17,7,17,12],[18,7,18,12],[19,7,19,12],[21,3,21,12],[12,3,12,12],[14,3,14,5],[14,7,14,12],[15,7,15,12],[16,7,16,12],[0,1,0,14],[6,3,8,12],[9,3,9,5],[9,7,9,10],[11,3,11,12],[57,0,57,1],[57,2,57,6],[49,0,51,6],[52,0,52,1],[52,2,52,4],[54,0,54,6],[55,0,55,6],[75,0,75,6],[58,2,58,6],[59,2,59,6],[60,0,60,1],[60,2,60,6],[61,2,61,6],[62,2,62,6],[64,0,64,6],[67,2,71,2],[73,0,73,1],[73,2,73,6],[74,0,74,6],[81,1,81,2],[81,3,81,4],[81,5,81,6],[76,0,76,6],[77,0,77,6],[78,0,78,6],[79,3,79,4],[79,5,79,6],[80,1,80,2],[80,3,80,4],[80,5,80,6]]}
[null,"Solicitud de LMU-40 Para la instalación de redes de servicio - Nueva y Modificada."]
[null,"Rol:Servidor Municipal Asignado Responsable de la firma Digital del Secretario de STHV"]
[null,"16. Regularizar firma del Secretario."]
[]
[null,"Sección 1"]
[]
[null,null,null,"LICENCIA METROPOLITANA URBANÍSTICA DE UTILIZACIÓN O\nAPROVECHAMIENTO DEL ESPACIO PÚBLICO PARA LA\nINSTALACIÓN DE REDES DE SERVICIO - LMU 40"]
[]
[]
[null,null,null,"LICENCIA LMU 40: N°- 012",null,null,null,"Exigibilidad: 29 de julio de cada año, contados a partir del 2011",null,null,null,"Fecha de Emisión",{"$f":"TODAY()","v":"2017-05-08"}]
[null,null,null,"MODIFICACIÓN ",null,"SI",null,"Fecha de la anterior LMU que se extingue: ",null,null,null," 15/07/2015"]
[null,null,null,"En base a los datos consignados en el formulario 40, entregado a la Secretaría de Territorio Hábitat y Vivienda y en cumplimiento de la ORDENANZA METROPOLITANA 022  que rige la utilización o aprovechamiento de espacio público para la instalación de redes de servicio  se otorga la LMU 40 para el proveedor siguiente: "]
[null,null,null,"DATOS DEL PROVEEDOR DE SERVICIO:"]
[]
[null,null,null,"RAZON SOCIAL:"]
[null,null,null,null,null,"RUC:"]
[null,null,null,null,null,"DIRECCIÓN:"]
[null,null,null,"REPRESENTANTE LEGAL:"]
[null,null,null,null,null,"TELÉFONO:"]
[null,null,null,null,null,"MAIL:"]
[]
[null,null,null,"DATOS TÉCNICOS:"]
[]
[null,null,null,null,null,"Tipo de Red","Zonificación","Metro Lineal "]
[null,null,null,null,null,"Aéreo","Zona A"]
[null,null,null,null,null,null,"Zona B",null,{"$f":"'[1]MATRIZ GLOBAL LMU 40'!P31","v":{"$error":"#REF!"}}]
[null,null,null,null,null,null,"Zona C"]
[null,null,null,null,null,null,"Zona D"]
[null,null,null,null,null,null,"Zona E"]
[null,null,null,null,null,"Soterrado:"]
[]
[null,null,null,"PERIODO DE VIGENCIA: INDETERMINADA"]
[null,null,null,"NOTAS.-\n-Esta licencia no convalida el incumplimiento de otras obligaciones previstas en el Ordenamiento Jurídico Metropolitano o Nacional Sectorial.\n-No se podrá utilizar esta Licencia y la información que con ocasión de su otorgamiento se hubiere suministrado para desconocer o incumplir obligaciones establecidas en el Ordenamiento Jurídico Nacional, ni para ejecutar conductas que afecten de algún modo la libre competencia. \n-Esta licencia caducará, y por tanto se extinguirá, en los siguientes supuestos: \na) En el plazo de tres meses de expedida, si su titular no ha iniciado la actuación licenciada;\nb) Por el vencimiento de cualquier otro plazo otorgado al administrado por el Municipio del Distrito Metropolitano de Quito para subsanar deficiencias; y,\nc) En los demás casos previstos en el Ordenamiento Jurídico Metropolitano. \n-Esta licencia se extinguirá, cuando hubiere sido otorgada sin cumplir con los requisitos establecidos en las normas administrativas o Reglas Técnicas que le hubieren sido aplicables. "]
[null,null,null,"LMU 40 emitida en relación al oficio No. NET-16-07-026, de fecha 14 de julio del 2016"]
[null,null,null," FIRMA DIGITAL\nSECRETARIO DE TERRITORIO, HÁBITAT Y VIVIENDA"]
[null,null,null,"MUNICIPIO DEL DISTRITO METROPOLITANO DE QUITO"]
[null,null,null,"Elaborado por:",null,null,null,null,"SI",null,null,"NO"]
[null,null,null,"Revisado por:",null,null,null,null,"SI"]
[null,null,null,"Revisado por:",null,null,null,null,"FIRMA DIGITAL"]
[]
[null,"Sección 2"]
[]
[null,null,"Regularizar Firma del Secretario"]
[]
[null,null,null,null,"CANCELAR",null,null,null,null,null,"ENVIAR"]
[]
[]
["Servidor Municipal Asignado Responsable de la firma Digital"]
[]
["LICENCIA METROPOLITANA URBANÍSTICA DE UTILIZACIÓN O\nAPROVECHAMIENTO DEL ESPACIO PÚBLICO PARA LA\nINSTALACIÓN DE REDES DE SERVICIO - LMU 40"]
[]
[]
["LICENCIA LMU 40: N°- 012",null,"Exigibilidad: 29 de julio de cada año, contados a partir del 2011",null,null,"Fecha de Emisión",{"$f":"TODAY()","v":"2017-05-08"}]
["MODIFICACIÓN ","SI","Fecha de la anterior LMU que se extingue: ",null,null," 15/07/2015"]
[{"$f":"'[1]FORMATO DE LICENCIA'!A5:F5","v":"En base a los datos consignados en el formulario 40, entregado a la Secretaría de Territorio Hábitat y Vivienda y en cumplimiento de la ORDENANZA METROPOLITANA 022  que rige la utilización o aprovechamiento de espacio público para la instalación de redes de servicio  se otorga la LMU 40 para el proveedor siguiente: "}]
["DATOS DEL PROVEEDOR DE SERVICIO:"]
[]
["RAZON SOCIAL:",null,{"$f":"UPPER('[1]MATRIZ GLOBAL LMU 40'!F24)","v":"LEVEL 3 ECUADOR LVLT S.A."}]
["RUC:",null,{"$f":"'[1]MATRIZ GLOBAL LMU 40'!G24","v":1791252322001}]
["DIRECCIÓN:",null,{"$f":"'[1]MATRIZ GLOBAL LMU 40'!H24","v":"Urb. Iñaquito Alto, calle Juan Díaz N37-111 Telf.: 024004040"}]
["REPRESENTANTE LEGAL:",null,{"$f":"'[1]MATRIZ GLOBAL LMU 40'!I24","v":"GUZMÁN DARQUEA JOSÉ FRANCISCO"}]
["TELÉFONO:",null,{"$f":"'[1]MATRIZ GLOBAL LMU 40'!K24","v":4004040}]
["MAIL:",null,{"$f":"'[1]MATRIZ GLOBAL LMU 40'!J24","v":"francisco.guzman@level3.com"}]
[]
["DATOS TÉCNICOS:"]
[]
[null,null,"Tipo de Red","Zonificación","Metro Lineal "]
[null,null,"Aéreo","Zona A",{"$f":"'[1]MATRIZ GLOBAL LMU 40'!O29","v":129336}]
[null,null,null,"Zona B",{"$f":"'[1]MATRIZ GLOBAL LMU 40'!P29","v":373308}]
[null,null,null,"Zona C",{"$f":"'[1]MATRIZ GLOBAL LMU 40'!Q29","v":55488}]
[null,null,null,"Zona D",{"$f":"'[1]MATRIZ GLOBAL LMU 40'!R29","v":18372}]
[null,null,null,"Zona E",{"$f":"'[1]MATRIZ GLOBAL LMU 40'!S29","v":4124}]
[null,null,"Soterrado:",null,{"$f":"'[1]MATRIZ GLOBAL LMU 40'!T29","v":30671}]
[]
["PERIODO DE VIGENCIA: INDETERMINADA"]
[{"$f":"'[1]FORMATO DE LICENCIA'!A26:F26","v":"NOTAS.-\n-Esta licencia no convalida el incumplimiento de otras obligaciones previstas en el Ordenamiento Jurídico Metropolitano o Nacional Sectorial.\n-No se podrá utilizar esta Licencia y la información que con ocasión de su otorgamiento se hubiere suministrado para desconocer o incumplir obligaciones establecidas en el Ordenamiento Jurídico Nacional, ni para ejecutar conductas que afecten de algún modo la libre competencia. \n-Esta licencia caducará, y por tanto se extinguirá, en los siguientes supuestos: \na) En el plazo de tres meses de expedida, si su titular no ha iniciado la actuación licenciada;\nb) Por el vencimiento de cualquier otro plazo otorgado al administrado por el Municipio del Distrito Metropolitano de Quito para subsanar deficiencias; y,\nc) En los demás casos previstos en el Ordenamiento Jurídico Metropolitano. \n-Esta licencia se extinguirá, cuando hubiere sido otorgada sin cumplir con los requisitos establecidos en las normas administrativas o Reglas Técnicas que le hubieren sido aplicables. "}]
["LMU 40 emitida en relación al oficio No. NET-16-07-026, de fecha 14 de julio del 2016"]
["\nFIRMA DIGITAL\n\n\n Arq. Jacobo Herdoíza\nSECRETARIO DE TERRITORIO, HÁBITAT Y VIVIENDA"]
["MUNICIPIO DEL DISTRITO METROPOLITANO DE QUITO"]
["Elaborado por:","Ing. David Jarrin ",null,"FIRMA DIGITAL"]
["Revisado por:","Ing. Amparo Quinga",null,"FIRMA DIGITAL"]
["Revisado por:","Arq. José Luis Barros",null,"FIRMA DIGITAL"]
[]
[]
[null,null,"CANCELAR",null,null,"ACEPTAR"]

{"sheet":"10","index":16,"n_rows":21,"n_cols":11,"rows_kept":21,"cut":false,"hidden":false,"merged":[[10,2,10,3],[0,1,0,14],[20,4,21,5],[20,10,21,11]]}
[null,"Solicitud de LMU-40 Para la instalación de redes de servicio - Nueva y Modificada."]
[null,"Rol: Ciudadano"]
[null,"17. Notificación de la licencia entregada al ciudadano."]
[null,null,"LICENCIA EMITIDA"]
[null,"Sección 1"]
[]
[null,null,"DATOS GENERALES"]
[]
[null,null,"RUC",1012457896001]
[null,null,"Nombre de la persona natural o jurídica proveedora del servicio"]
[]
[null,null," Nombre comercial de Operación"]
[]
[]
[null,null,null,"N° Cédula :"]
[null,null,null,"Nombre responsable del trámite"]
[null,null,null,"Contacto: email, telf, etc."]
[]
[null,null,"LICENCIA LMU-40"]
[]
[null,null,null,null,"CANCELAR",null,null,null,null,null,"ACEPTAR"]

{"sheet":"ADICIONAL","index":17,"n_rows":9,"n_cols":5,"rows_kept":9,"cut":false,"hidden":false,"merged":[]}
[]
[]
[]
[null,"Técnico 1"]
[null,"Técnico 2"]
[null,"Técnico 3"]
[null,null,null,null,"Cédula"]
[null,null,null,null,"RUC"]
[null,null,null,null,"Pasaporte"]